bitfinex-derivatives/quotes_BTCF0:USTF0_20251028
["timestamp","ask_amount","ask_price","bid_price","bid_amount"]
[1761689507711,0.06886014,112970.0,112960.0,0.42388]
[1761689508314,0.06886014,112970.0,112960.0,0.06308]
[1761689509012,0.44112014,112970.0,112960.0,0.06308]
[1761689509218,0.44112014,112970.0,112960.0,0.04974]
[1761689509510,0.76643349,112970.0,112960.0,0.006]
[1761689509719,0.44112014,112970.0,112960.0,0.04974]
[1761689509902,0.44112014,112970.0,112960.0,0.06308]
[1761689510106,0.44112014,112970.0,112960.0,0.04974]
[1761689512209,0.44112014,112970.0,112960.0,0.006]
[1761689512912,0.46498048,112970.0,112960.0,0.006]
[1761689513109,0.79293383,112970.0,112960.0,0.006]
[1761689513304,0.79029383,112970.0,112960.0,0.006]
[1761689513709,0.79293383,112970.0,112960.0,0.006]
[1761689513911,0.79029383,112970.0,112960.0,0.006]
[1761689515205,0.46498048,112970.0,112960.0,0.006]
[1761689516822,0.79029383,112970.0,112960.0,0.006]
[1761689517920,0.42966014,112970.0,112960.0,0.06308]
[1761689521619,0.06886014,112970.0,112960.0,0.06308]
[1761689521820,0.003,112970.0,112960.0,0.99103335]
[1761689522125,0.02408,112970.0,112960.0,0.66308]
[1761689522522,0.04583,112970.0,112960.0,0.66308]
[1761689522926,0.003,112970.0,112960.0,0.06572]
[1761689523122,0.003,112970.0,112960.0,0.74919335]
[1761689523323,0.003,112970.0,112960.0,0.83771515]
[1761689523526,0.003,112970.0,112960.0,0.84035515]
[1761689526029,0.43059034,112990.0,112980.0,0.05669]
[1761689526342,0.02325554,112990.0,112980.0,0.83130945]
[1761689526534,0.02325554,112990.0,112980.0,0.74280335]
[1761689526825,0.02325554,112990.0,112980.0,0.83130985]
[1761689527637,0.02325554,112990.0,112980.0,0.83394985]
[1761689527833,0.05214554,112990.0,112980.0,0.74744335]
[1761689528023,0.02925554,112990.0,112980.0,0.74480335]
[1761689528333,0.02925554,112990.0,112980.0,0.83330985]
[1761689528625,0.02925554,112990.0,112980.0,0.83594985]
[1761689528626,0.03125554,112990.0,112980.0,0.83594985]
[1761689528830,0.03125554,112990.0,112980.0,0.83330985]
[1761689529235,0.03125554,112990.0,112980.0,0.83594985]
[1761689529537,0.03125554,112990.0,112980.0,0.83330985]
[1761689530126,0.008,112990.0,112980.0,0.83330985]
[1761689530730,0.05201,112990.0,112980.0,0.41949]
[1761689530937,0.05201,112990.0,112980.0,0.55317]
[1761689531428,0.07509139,112990.0,112980.0,0.55317]
[1761689532234,0.0303,112990.0,112980.0,0.55317]
[1761689532423,0.008,112990.0,112980.0,0.55317]
[1761689532729,0.008,112990.0,112980.0,0.96962995]
[1761689532934,0.008,112990.0,112980.0,0.96958995]
[1761689533330,0.02386034,113010.0,113000.0,0.05762]
[1761689533634,0.04693493,113010.0,113000.0,0.51657335]
[1761689534034,0.04693493,113010.0,113000.0,0.96586425]
[1761689534333,0.02307459,113010.0,113000.0,0.87737335]
[1761689534639,0.02607459,113010.0,113000.0,0.87737335]
[1761689535134,0.04837459,113010.0,113000.0,0.87737335]
[1761689535734,0.05437459,113010.0,113000.0,0.87837335]
[1761689536730,0.43629459,113010.0,113000.0,0.05862]
[1761689536924,0.43229459,113010.0,113000.0,0.21026]
[1761689537520,0.42929459,113010.0,113000.0,0.21026]
[1761689537735,0.42929459,113010.0,113000.0,0.21226]
[1761689542038,0.40622,113010.0,113000.0,0.21226]
[1761689551043,0.41768,113010.0,113000.0,0.06546]
[1761689551233,0.74299335,113010.0,113000.0,0.021]
[1761689551435,0.05462,112990.0,112980.0,0.04446]
[1761689551644,0.41542,112990.0,112980.0,0.17802]
[1761689552146,0.41542,112990.0,112980.0,0.04446]
[1761689552636,0.41842,112990.0,112980.0,0.06946]
[1761689552838,0.41842,112990.0,112980.0,0.07446]
[1761689553041,0.41842,112990.0,112980.0,0.08762]
[1761689553441,0.41842,112990.0,112980.0,0.08262]
[1761689553641,0.41542,112990.0,112980.0,0.05962]
[1761689553837,0.41742,112990.0,112980.0,0.07962]
[1761689555346,0.40622,112990.0,112980.0,0.07962]
[1761689556753,0.40422,112990.0,112980.0,0.05762]
[1761689557048,0.40722,112990.0,112980.0,0.05962]
[1761689557438,0.41842,112990.0,112980.0,0.04646]
[1761689558249,0.41542,112990.0,112980.0,0.04646]
[1761689558548,0.41642,112990.0,112980.0,0.04846]
[1761689558950,0.41642,112990.0,112980.0,0.06192]
[1761689559139,0.04442,112990.0,112980.0,0.06192]
[1761689561450,0.04571,112990.0,112980.0,0.30432678]
[1761689562947,0.001,112990.0,112980.0,0.39283288]
[1761689563144,0.001,112990.0,112980.0,0.99283288]
[1761689563347,0.001,112990.0,112980.0,1.21835575]
[1761689563651,0.001,112990.0,112980.0,0.9721131]
[1761689564052,0.001,112990.0,112980.0,1.4214192]
[1761689564445,0.001,112990.0,112980.0,0.8214192]
[1761689565249,0.001,112990.0,112980.0,0.7329131]
[1761689565556,0.001,112990.0,112980.0,0.8214196]
[1761689565747,0.04571,112990.0,112980.0,0.8214196]
[1761689565949,0.001,112990.0,112980.0,0.8214196]
[1761689566355,0.02329,112990.0,112980.0,0.8214196]
[1761689566754,0.04571,112990.0,112980.0,0.7329131]
[1761689567057,0.04571,112990.0,112980.0,0.5056731]
[1761689575354,0.57280655,112990.0,112980.0,0.19548]
[1761689575747,0.57280655,112990.0,112980.0,0.35057655]
[1761689577157,0.56160655,112990.0,112980.0,0.35057655]
[1761689577363,0.40651,112990.0,112980.0,0.35057655]
[1761689578963,0.001,112990.0,112980.0,0.8664731]
[1761689580065,0.02329,112990.0,112980.0,0.8664731]
[1761689580263,0.04571,112990.0,112980.0,0.55628]
[1761689580562,0.04571,112990.0,112980.0,0.5056731]
[1761689581061,0.04571,112990.0,112980.0,0.19548]
[1761689581364,0.04571,112990.0,112980.0,0.35057655]
[1761689583366,0.04571,112990.0,112980.0,0.5056731]
[1761689583861,0.04571,112990.0,112980.0,0.8664731]
[1761689584466,0.04571,112990.0,112980.0,0.5056731]
[1761689586375,0.04571,112990.0,112980.0,0.19548]
[1761689586563,0.58503462,112990.0,112980.0,0.35057655]
[1761689588068,0.42993807,112990.0,112980.0,0.35057655]
[1761689588268,0.58503462,112990.0,112980.0,0.19548]
[1761689588869,0.58503462,112990.0,112980.0,0.06192]
[1761689589066,0.58503462,112990.0,112980.0,0.21701655]
[1761689589368,0.42993807,112990.0,112980.0,0.21701655]
[1761689589770,0.58503462,112990.0,112980.0,0.21701655]
[1761689590472,0.58503462,112990.0,112980.0,0.004]
[1761689590473,0.72979462,112990.0,112980.0,0.004]
[1761689590959,0.73243462,112990.0,112980.0,0.004]
[1761689591156,0.72979462,112990.0,112980.0,0.004]
[1761689591356,0.73243462,112990.0,112980.0,0.004]
[1761689594575,0.73243462,112990.0,112960.0,0.30181655]
[1761689594576,0.04276,112970.0,112960.0,0.0227]
[1761689594876,0.05396,112960.0,112950.0,0.05788]
[1761689595058,0.56985655,112960.0,112950.0,0.05788]
[1761689595262,0.7249531,112960.0,112950.0,0.0227]
[1761689595458,0.7249531,112960.0,112950.0,0.04472]
[1761689596474,0.7269531,112960.0,112950.0,0.05572]
[1761689596665,0.7269531,112960.0,112950.0,0.05972]
[1761689597069,0.73573037,112960.0,112950.0,0.05972]
[1761689598371,0.73573037,112960.0,112950.0,0.015]
[1761689598575,0.73573037,112960.0,112950.0,0.0377]
[1761689598774,0.73573037,112960.0,112950.0,0.05972]
[1761689600467,0.73573037,112960.0,112950.0,0.015]
[1761689602178,0.73573037,112960.0,112950.0,0.012]
[1761689602780,0.73573037,112960.0,112950.0,0.0347]
[1761689603279,0.74073037,112960.0,112950.0,0.0247]
[1761689604079,0.74073037,112960.0,112950.0,0.04672]
[1761689605178,0.74073037,112960.0,112950.0,0.002]
[1761689606379,0.74073037,112960.0,112950.0,0.04672]
[1761689608581,0.74073037,112960.0,112950.0,0.002]
[1761689608885,0.76404053,112960.0,112950.0,0.002]
[1761689609070,0.76404053,112960.0,112950.0,0.05936]
[1761689609271,0.60894398,112960.0,112950.0,0.05936]
[1761689609471,0.76404053,112960.0,112950.0,0.05936]
[1761689611478,0.76404053,112960.0,112950.0,0.002]
[1761689612875,0.76404053,112960.0,112950.0,0.04672]
[1761689613781,0.76404053,112960.0,112950.0,0.0247]
[1761689614085,0.76404053,112960.0,112950.0,0.002]
[1761689614475,0.76404053,112960.0,112950.0,0.04802]
[1761689614677,0.88644053,112960.0,112950.0,0.06113]
[1761689614984,0.89764053,112960.0,112950.0,0.04802]
[1761689616882,0.75284053,112960.0,112950.0,0.06113]
[1761689617076,0.44264743,112960.0,112950.0,0.21622655]
[1761689617381,0.73134398,112960.0,112950.0,0.21622655]
[1761689617684,0.56747016,112960.0,112950.0,0.21622655]
[1761689617880,0.43387016,112960.0,112950.0,0.21622655]
[1761689618194,0.39111016,112960.0,112950.0,0.81622655]
[1761689618492,0.41061,112960.0,112950.0,0.81622655]
[1761689618879,0.3678,112960.0,112950.0,0.21886655]
[1761689619085,0.3678,112960.0,112950.0,0.3713231]
[1761689619286,0.3678,112960.0,112950.0,0.9739631]
[1761689619480,0.41061,112960.0,112950.0,0.9713231]
[1761689619680,0.41061,112960.0,112950.0,0.81622655]
[1761689619879,0.38912,112960.0,112950.0,0.81622655]
[1761689620081,0.3678,112960.0,112950.0,0.81622655]
[1761689620283,0.007,112960.0,112950.0,1.0624926]
[1761689620483,0.007,112960.0,112950.0,1.4232926]
[1761689620984,0.007,112960.0,112950.0,0.8232926]
[1761689621281,0.007,112960.0,112950.0,0.82345718]
[1761689627788,0.04981,112960.0,112950.0,0.21630884]
[1761689627988,0.07315023,112960.0,112950.0,0.19473]
[1761689628192,0.07315023,112960.0,112950.0,0.06113]
[1761689628385,0.07315023,112960.0,112950.0,0.34990884]
[1761689628586,0.03034023,112960.0,112950.0,0.71070884]
[1761689628794,0.03034023,112960.0,112950.0,0.86852768]
[1761689629098,0.007,112960.0,112950.0,0.95705718]
[1761689629387,0.007,112960.0,112950.0,0.86852768]
[1761689629780,0.007,112960.0,112950.0,0.71334884]
[1761689630385,0.007,112960.0,112950.0,0.71070884]
[1761689631895,0.007,112960.0,112950.0,0.80187814]
[1761689632095,0.007,112960.0,112950.0,0.95705698]
[1761689632989,0.007,112960.0,112950.0,0.86588768]
[1761689634998,0.007,112960.0,112950.0,0.95705698]
[1761689637499,0.06663204,112980.0,112970.0,0.05913]
[1761689637700,0.08980886,112980.0,112970.0,0.34790884]
[1761689638289,0.06598682,112980.0,112970.0,0.34790884]
[1761689638495,0.08980886,112980.0,112970.0,0.34790884]
[1761689638799,0.06798682,112980.0,112970.0,0.34790884]
[1761689639000,0.09198682,112980.0,112970.0,0.34990884]
[1761689639299,0.04917682,112980.0,112970.0,0.34990884]
[1761689639599,0.08998682,112980.0,112970.0,0.34990884]
[1761689639796,0.09198682,112980.0,112970.0,0.34990884]
[1761689640594,0.6429877,112980.0,112970.0,0.002]
[1761689641094,0.05401,112970.0,112960.0,0.17958]
[1761689641292,0.05427,112960.0,112950.0,0.04602]
[1761689641502,0.05401,112950.0,112940.0,0.05913]
[1761689641693,0.04281,112950.0,112940.0,0.19269]
[1761689642601,0.42702029,112950.0,112940.0,0.19269]
[1761689642998,0.42902029,112950.0,112940.0,0.21069]
[1761689644202,0.42902029,112950.0,112940.0,0.21469]
[1761689644905,0.42902029,112950.0,112940.0,0.07913]
[1761689645100,0.44022029,112950.0,112940.0,0.06602]
[1761689645605,0.59539913,112950.0,112940.0,0.06602]
[1761689645807,0.59539913,112950.0,112940.0,0.02]
[1761689646303,0.59803913,112950.0,112940.0,0.02]
[1761689646904,0.77057797,112950.0,112940.0,0.02]
[1761689647106,0.05678,112930.0,112920.0,7.882e-05]
[1761689647404,0.93355884,112930.0,112920.0,7.882e-05]
[1761689648494,0.93555884,112930.0,112920.0,0.02407882]
[1761689648702,0.78038,112930.0,112920.0,0.07055882]
[1761689648909,0.78038,112930.0,112920.0,0.05155882]
[1761689649092,0.78038,112930.0,112920.0,0.00207882]
[1761689649902,0.78945896,112930.0,112920.0,0.00207882]
[1761689650206,0.9446378,112930.0,112920.0,0.00207882]
[1761689654305,0.91398,112930.0,112920.0,0.05901882]
[1761689654503,0.91398,112930.0,112920.0,0.04603882]
[1761689655903,0.90278,112930.0,112920.0,0.21419766]
[1761689656409,0.90278,112930.0,112920.0,0.05901882]
[1761689656707,0.76918,112930.0,112920.0,0.05901882]
[1761689656908,0.78038,112930.0,112920.0,0.04603882]
[1761689658504,0.93555884,112930.0,112920.0,0.00207882]
[1761689659209,0.78038,112930.0,112920.0,0.00207882]
[1761689659409,0.78038,112930.0,112920.0,0.02320882]
[1761689660606,0.78038,112930.0,112920.0,0.04603882]
[1761689660811,0.76918,112930.0,112920.0,0.05901882]
[1761689663420,0.04758,112930.0,112920.0,0.05901882]
[1761689663608,0.40838,112930.0,112920.0,0.05901882]
[1761689666023,0.40838,112930.0,112920.0,0.21419766]
[1761689669315,0.431872,112930.0,112920.0,0.05901882]
[1761689669826,0.431872,112930.0,112920.0,0.21419766]
[1761689671118,0.443072,112930.0,112920.0,0.04603882]
[1761689671820,0.443072,112930.0,112920.0,0.00207882]
[1761689672212,0.59825084,112930.0,112920.0,0.00207882]
[1761689673122,0.59825084,112930.0,112920.0,0.02393882]
[1761689673325,0.443072,112930.0,112920.0,0.02393882]
[1761689674324,0.443072,112930.0,112920.0,0.04577882]
[1761689677620,0.443072,112930.0,112920.0,0.05876882]
[1761689677621,0.431872,112930.0,112920.0,0.05876882]
[1761689677924,0.443072,112930.0,112920.0,0.04577882]
[1761689678336,0.59825084,112930.0,112920.0,0.00207882]
[1761689678626,0.62207621,112930.0,112920.0,0.00207882]
[1761689680619,0.65383308,112930.0,112920.0,0.00207882]
[1761689680822,0.65647308,112930.0,112920.0,0.00207882]
[1761689681330,0.63019669,112930.0,112920.0,0.00207882]
[1761689681625,0.79556451,112930.0,112920.0,0.00207882]
[1761689681830,0.79820451,112930.0,112920.0,0.00207882]
[1761689682731,0.79556451,112930.0,112920.0,0.00207882]
[1761689683232,0.79820451,112930.0,112920.0,0.00207882]
[1761689684330,0.8457952,112930.0,112920.0,0.00207882]
[1761689684632,0.81820451,112930.0,112920.0,0.00207882]
[1761689684831,0.79820451,112930.0,112920.0,0.00207882]
[1761689685123,0.81820451,112930.0,112920.0,0.00207882]
[1761689685329,0.79820451,112930.0,112920.0,0.00207882]
[1761689686929,0.48746887,112930.0,112920.0,0.00207882]
[1761689687232,0.79820451,112930.0,112920.0,0.00207882]
[1761689687434,0.82207353,112930.0,112920.0,0.00207882]
[1761689687636,0.81943353,112930.0,112920.0,0.00207882]
[1761689687934,0.82207353,112930.0,112920.0,0.00207882]
[1761689688331,0.81943353,112930.0,112920.0,0.00207882]
[1761689688928,0.82207353,112930.0,112920.0,0.00207882]
[1761689692137,0.81943353,112930.0,112920.0,0.00207882]
[1761689693837,0.82207353,112930.0,112920.0,0.00207882]
[1761689694131,0.79820451,112930.0,112920.0,0.00207882]
[1761689694931,1.13403833,112930.0,112920.0,0.00207882]
[1761689695130,0.0449,112900.0,112890.0,0.05813913]
[1761689695431,0.56106782,112900.0,112890.0,0.21350695]
[1761689695733,0.57226782,112900.0,112890.0,0.04540913]
[1761689696237,0.57434664,112900.0,112890.0,0.05839913]
[1761689696437,0.58308755,112900.0,112890.0,0.06239913]
[1761689696838,0.58308755,112900.0,112890.0,0.21776695]
[1761689697440,0.59534989,112900.0,112890.0,0.21776695]
[1761689698240,0.57188755,112900.0,112890.0,0.21776695]
[1761689699136,0.58308755,112900.0,112890.0,0.21776695]
[1761689699731,0.56314664,112900.0,112890.0,0.20477695]
[1761689699935,0.57434664,112900.0,112890.0,0.20477695]
[1761689700333,0.59774701,112900.0,112890.0,0.20477695]
[1761689700731,0.60666097,112900.0,112890.0,0.20477695]
[1761689700937,0.60666097,112900.0,112890.0,0.04940913]
[1761689701236,0.5832606,112900.0,112890.0,0.04940913]
[1761689701430,0.60665992,112900.0,112890.0,0.04940913]
[1761689701734,0.40777882,112900.0,112890.0,0.21776695]
[1761689702534,0.40777882,112900.0,112890.0,0.06239913]
[1761689702739,0.57434664,112900.0,112890.0,0.04940913]
[1761689703130,0.72971446,112900.0,112890.0,0.00548913]
[1761689703326,0.78311319,112900.0,112890.0,0.00548913]
[1761689703532,0.75311319,112900.0,112890.0,0.00548913]
[1761689703842,0.76193461,112900.0,112890.0,0.00548913]
[1761689711350,0.78579982,112900.0,112890.0,0.00548913]
[1761689712450,0.78579982,112900.0,112890.0,0.02709913]
[1761689712640,0.78579982,112900.0,112890.0,0.00548913]
[1761689716350,0.47506418,112900.0,112890.0,0.02709913]
[1761689716549,0.78579982,112900.0,112890.0,0.02709913]
[1761689717155,0.78579982,112900.0,112890.0,0.00548913]
[1761689717858,0.78579982,112900.0,112890.0,0.05007913]
[1761689718049,0.60656679,112900.0,112890.0,0.06347913]
[1761689718351,0.76193461,112900.0,112890.0,0.05007913]
[1761689719855,0.78579982,112900.0,112890.0,0.05007913]
[1761689720859,0.78579982,112900.0,112890.0,0.02709913]
[1761689721470,0.78579982,112900.0,112890.0,0.05007913]
[1761689721757,0.47506418,112900.0,112890.0,0.05007913]
[1761689721960,0.78579982,112900.0,112890.0,0.05007913]
[1761689723257,0.78579982,112900.0,112890.0,0.00548913]
[1761689723859,0.78579982,112900.0,112890.0,0.02709913]
[1761689724758,0.78579982,112900.0,112890.0,0.05007913]
[1761689725555,0.47506418,112900.0,112890.0,0.05007913]
[1761689725762,0.78579982,112900.0,112890.0,0.05007913]
[1761689725958,0.78579982,112900.0,112890.0,0.00548913]
[1761689726460,0.78579982,112900.0,112890.0,0.02709913]
[1761689726657,0.78579982,112900.0,112890.0,0.00548913]
[1761689727462,0.78579982,112900.0,112890.0,0.05007913]
[1761689727662,0.78579982,112900.0,112890.0,0.02709913]
[1761689727962,0.619232,112900.0,112890.0,0.21884695]
[1761689728156,0.78579982,112900.0,112890.0,0.05007913]
[1761689729871,0.46213418,112900.0,112890.0,0.21884695]
[1761689730159,0.46213418,112900.0,112890.0,0.05007913]
[1761689730160,0.628702,112900.0,112890.0,0.05007913]
[1761689733865,0.78406982,112900.0,112890.0,0.05007913]
[1761689734265,0.628702,112900.0,112890.0,0.05007913]
[1761689734566,0.78406982,112900.0,112890.0,0.05007913]
[1761689738869,0.47333418,112900.0,112890.0,0.05007913]
[1761689739070,0.628702,112900.0,112890.0,0.05007913]
[1761689739571,0.628702,112900.0,112890.0,0.21882695]
[1761689741069,0.45331276,112900.0,112890.0,0.21882695]
[1761689741367,0.45331276,112900.0,112890.0,0.37419477]
[1761689741368,0.38627755,112900.0,112890.0,0.37419477]
[1761689741673,0.00207882,112900.0,112890.0,0.46541087]
[1761689741869,1e-08,112900.0,112890.0,0.82621087]
[1761689742266,0.3608,112920.0,112910.0,0.05877]
[1761689742465,0.40664,112920.0,112910.0,0.34777782]
[1761689742860,0.40664,112920.0,112910.0,0.35666611]
[1761689743167,0.38405,112930.0,112920.0,0.02258]
[1761689743368,0.38422166,112930.0,112920.0,0.30259803]
[1761689743671,0.3608,112930.0,112920.0,0.30259803]
[1761689743870,0.3608,112930.0,112920.0,0.21404523]
[1761689744774,0.3608,112930.0,112920.0,0.30259793]
[1761689745170,0.3638,112930.0,112920.0,0.30523793]
[1761689745670,0.003,112930.0,112920.0,0.30523793]
[1761689745860,0.3608,112940.0,112930.0,0.05877]
[1761689746065,0.38405,112940.0,112930.0,0.34764523]
[1761689746885,0.39405,112940.0,112930.0,0.35028523]
[1761689747083,0.39405,112940.0,112930.0,0.34764523]
[1761689747270,0.41664,112940.0,112930.0,0.34764523]
[1761689747671,0.41664,112940.0,112930.0,0.35028523]
[1761689747872,0.3708,112940.0,112930.0,0.35028523]
[1761689748074,0.41664,112940.0,112930.0,0.19337]
[1761689749781,0.58311523,112940.0,112930.0,0.17999]
[1761689750084,0.04584,112910.0,112900.0,0.05877]
[1761689750274,0.57337523,112910.0,112900.0,0.04539]
[1761689750580,0.58228308,112910.0,112900.0,0.02258]
[1761689750783,0.04584,112900.0,112890.0,0.06025913]
[1761689751787,0.04584,112900.0,112890.0,0.21553436]
[1761689752289,0.04584,112900.0,112890.0,0.42505913]
[1761689752787,0.04784,112900.0,112890.0,0.42505913]
[1761689753288,0.40864,112900.0,112890.0,0.06425913]
[1761689760091,0.04784,112900.0,112890.0,0.21953436]
[1761689760288,0.002,112900.0,112890.0,0.22217436]
[1761689760591,0.002,112900.0,112890.0,0.58297436]
[1761689762191,0.002,112900.0,112890.0,0.67155026]
[1761689762692,0.002,112900.0,112890.0,0.82682549]
[1761689763676,0.002,112900.0,112890.0,0.58297436]
[1761689763882,0.04705,112900.0,112890.0,0.58033436]
[1761689764177,0.04705,112900.0,112890.0,0.66891026]
[1761689764785,0.002,112900.0,112890.0,0.66891026]
[1761689765186,0.002,112900.0,112890.0,0.82682549]
[1761689766189,0.40585,112920.0,112910.0,0.04212]
[1761689766393,0.42921785,112920.0,112910.0,0.34431523]
[1761689766588,0.3608,112920.0,112910.0,0.34431523]
[1761689766796,0.40585,112930.0,112920.0,0.05528]
[1761689767099,0.02336726,112930.0,112920.0,0.29910783]
[1761689767392,0.02336726,112930.0,112920.0,0.21055523]
[1761689767593,0.02336726,112930.0,112920.0,0.1438326]
[1761689767785,0.04652726,112930.0,112920.0,0.21055523]
[1761689767986,0.04652726,112930.0,112920.0,0.29910793]
[1761689768190,0.02536726,112930.0,112920.0,0.29910793]
[1761689768897,0.002,112930.0,112920.0,0.46574538]
[1761689769097,0.002,112930.0,112920.0,0.46310538]
[1761689769392,0.002,112930.0,112920.0,0.29910783]
[1761689769696,0.002,112930.0,112920.0,0.30310783]
[1761689770493,0.002,112930.0,112920.0,0.66390783]
[1761689772099,0.02529108,112930.0,112920.0,0.67263804]
[1761689773205,0.002,112930.0,112920.0,0.67263804]
[1761689773701,0.002,112930.0,112920.0,0.66390783]
[1761689774495,0.002,112930.0,112920.0,0.81918306]
[1761689774803,0.002,112930.0,112920.0,0.67274275]
[1761689777802,0.002,112930.0,112920.0,0.82801798]
[1761689777998,0.02520557,112930.0,112920.0,0.82801798]
[1761689778196,0.02520557,112930.0,112920.0,0.83065798]
[1761689778595,0.02520557,112930.0,112920.0,0.82801798]
[1761689778799,0.02520557,112930.0,112920.0,0.83065798]
[1761689779108,0.38460151,112950.0,112920.0,0.83065798]
[1761689779314,0.42774151,112950.0,112940.0,0.05596]
[1761689780698,0.43574151,112950.0,112940.0,0.21123523]
[1761689781207,0.62616963,112950.0,112940.0,0.15522]
[1761689781509,0.62616963,112950.0,112940.0,0.17736]
[1761689781510,0.65016963,112950.0,112940.0,0.17736]
[1761689782003,0.65216963,112950.0,112940.0,0.17736]
[1761689783211,0.62836812,112950.0,112940.0,0.04372]
[1761689783408,0.65221291,112950.0,112940.0,0.13472]
[1761689783715,0.62836812,112950.0,112940.0,0.13472]
[1761689785513,0.62836812,112950.0,112940.0,0.001]
[1761689785720,0.62836812,112950.0,112940.0,0.13472]
[1761689786812,0.62836812,112950.0,112940.0,0.001]
[1761689788311,0.62836812,112950.0,112940.0,0.04372]
[1761689789115,0.67595881,112950.0,112940.0,0.04372]
[1761689789801,0.67595881,112950.0,112940.0,0.02258]
[1761689790516,0.67595881,112950.0,112940.0,0.04372]
[1761689790708,0.67595881,112950.0,112940.0,0.001]
[1761689791313,0.69909734,112950.0,112940.0,0.02258]
[1761689792602,0.69909734,112950.0,112940.0,0.001]
[1761689792816,0.69909734,112950.0,112940.0,0.02258]
[1761689794317,0.69909734,112950.0,112940.0,0.001]
[1761689794708,0.69909734,112950.0,112940.0,0.02268]
[1761689795114,0.66727445,112950.0,112940.0,0.02268]
[1761689795908,0.66727445,112950.0,112940.0,0.04484]
[1761689796310,0.51199922,112950.0,112940.0,0.05759]
[1761689796511,0.53253793,112950.0,112940.0,0.21286523]
[1761689796819,0.48494724,112950.0,112940.0,0.21286523]
[1761689797014,0.48494724,112950.0,112940.0,0.05759]
[1761689797319,0.53253793,112950.0,112940.0,0.05759]
[1761689802622,0.48494724,112950.0,112940.0,0.05759]
[1761689803431,0.6402322,112950.0,112940.0,0.21287496]
[1761689805527,0.6515622,112950.0,112940.0,0.02268]
[1761689805732,0.6515622,112950.0,112940.0,0.1346]
[1761689806029,0.0452,112920.0,112910.0,0.057]
[1761689806234,0.59575349,112920.0,112910.0,0.057]
[1761689806427,0.59575349,112920.0,112910.0,0.1906]
[1761689806629,0.61965365,112920.0,112910.0,0.17744]
[1761689807334,0.59575349,112920.0,112910.0,0.18144]
[1761689807533,0.58642349,112920.0,112910.0,0.35447496]
[1761689807830,0.43113853,112920.0,112910.0,0.35447496]
[1761689808221,0.59762349,112920.0,112910.0,0.35447496]
[1761689808823,0.59762349,112920.0,112910.0,0.19919]
[1761689809021,0.59762349,112920.0,112910.0,0.18644]
[1761689810230,0.59762349,112920.0,112910.0,0.19919]
[1761689810729,0.91044861,112920.0,112910.0,0.009]
[1761689811236,0.91951502,112920.0,112910.0,0.009]
[1761689811435,0.92215502,112920.0,112910.0,0.009]
[1761689811730,0.0564,112900.0,112890.0,0.00148913]
[1761689811934,0.88454845,112900.0,112890.0,0.00148913]
[1761689812532,0.72926349,112900.0,112890.0,0.00148913]
[1761689812835,0.88454845,112900.0,112890.0,0.02316913]
[1761689813136,0.88454845,112900.0,112890.0,0.02716913]
[1761689813336,0.88654845,112900.0,112890.0,0.03116913]
[1761689813834,0.88654845,112900.0,112890.0,0.00948913]
[1761689813835,1.24734845,112900.0,112890.0,0.00948913]
[1761689814934,0.93677853,112900.0,112890.0,0.05332913]
[1761689815136,1.09214349,112900.0,112890.0,0.20861409]
[1761689815438,1.09214349,112900.0,112890.0,0.18645409]
[1761689815638,1.09214349,112900.0,112890.0,0.00948913]
[1761689816022,1.09214349,112900.0,112890.0,0.03116913]
[1761689816538,1.09214349,112900.0,112890.0,0.00948913]
[1761689817128,1.06900496,112900.0,112890.0,0.18645409]
[1761689817731,1.06900496,112900.0,112890.0,0.03116913]
[1761689817930,1.06900496,112900.0,112890.0,0.05332913]
[1761689818132,1.06900496,112900.0,112890.0,0.20861409]
[1761689818737,0.78,112900.0,112890.0,0.22136409]
[1761689818936,0.408,112900.0,112890.0,0.22136409]
[1761689819354,0.408,112900.0,112890.0,0.59894535]
[1761689819941,0.408,112900.0,112890.0,0.44366039]
[1761689820242,0.0472,112900.0,112890.0,0.44366039]
[1761689820430,0.02458,112900.0,112890.0,0.44366039]
[1761689820631,0.002,112900.0,112890.0,0.59894535]
[1761689820833,0.002,112900.0,112890.0,0.60158535]
[1761689821231,0.002,112900.0,112890.0,1.20158535]
[1761689821838,0.0472,112900.0,112890.0,0.22136409]
[1761689822143,0.57461496,112900.0,112890.0,0.32013409]
[1761689822338,0.57461496,112900.0,112890.0,0.16484913]
[1761689822537,0.57461496,112900.0,112890.0,0.34229409]
[1761689823136,0.408,112900.0,112890.0,0.35504409]
[1761689824749,0.0472,112900.0,112890.0,0.35504409]
[1761689825045,0.0472,112900.0,112890.0,0.22136409]
[1761689825446,0.0472,112900.0,112890.0,0.30994059]
[1761689825651,0.0472,112900.0,112890.0,0.22136409]
[1761689828144,0.408,112900.0,112890.0,0.05332913]
[1761689828352,0.72989992,112900.0,112890.0,0.00948913]
[1761689828654,0.41933,112900.0,112890.0,0.03253913]
[1761689828848,0.57461496,112900.0,112890.0,0.21017409]
[1761689829036,0.56328496,112900.0,112890.0,0.22322409]
[1761689829749,0.408,112900.0,112890.0,0.22322409]
[1761689830342,0.0472,112900.0,112890.0,0.31180089]
[1761689830838,0.05853,112900.0,112890.0,0.22322409]
[1761689831048,0.0472,112900.0,112890.0,0.35690409]
[1761689831349,0.0472,112900.0,112890.0,0.96156575]
[1761689832748,0.0472,112900.0,112890.0,0.80628079]
[1761689833754,0.0472,112900.0,112890.0,0.96156575]
[1761689835055,0.0472,112900.0,112890.0,0.80628079]
[1761689835854,0.0472,112900.0,112890.0,0.96156575]
[1761689836349,0.002,112900.0,112890.0,0.96420575]
[1761689837050,0.56308598,112930.0,112920.0,0.05845]
[1761689837351,0.58678615,112930.0,112920.0,0.21373496]
[1761689837551,0.42922017,112930.0,112920.0,0.36901992]
[1761689837851,0.06842017,112930.0,112920.0,0.45757292]
[1761689838054,0.04629017,112930.0,112920.0,0.45757292]
[1761689838254,0.04929017,112930.0,112920.0,0.45757292]
[1761689838553,0.07329017,112930.0,112920.0,0.81837292]
[1761689838757,0.05070017,112930.0,112920.0,0.82101292]
[1761689839152,0.027,112930.0,112920.0,0.82101292]
[1761689839645,0.024,112930.0,112920.0,0.82727203]
[1761689839846,0.04768679,112930.0,112920.0,0.83127203]
[1761689840047,0.024,112930.0,112920.0,0.83127203]
[1761689840256,0.56316598,112950.0,112940.0,0.05845]
[1761689840448,0.58684606,112950.0,112940.0,0.34749496]
[1761689841353,0.58684606,112950.0,112940.0,0.34849496]